[Event "Turkish Club Cup 2019"]
[Site "Konya"]
[Date "2019.07.16"]
[Round "1"]
[White "Celiker, Yakup"]
[Black "Yurdun, Fehmi Kuzey"]
[Result "1/2-1/2"]
[ECO "C97"]
[WhiteElo "1930"]
[BlackElo "1327"]
[Annotator "NA"]
[PlyCount "87"]
[EventDate "2019.07.16"]
[EventType "team-tourn"]
[EventCountry "TUR"]
[SourceTitle "playchess.com"]
[Source "ChessBase"]
[SourceQuality "1"]
[TimeControl "5400+30"]

1. e4 {[%emt 0:00:30]} e5 {[%emt 0:00:30]} 2. Nf3 {[%emt 0:00:00]} Nc6 {[%emt 0:00:00]} 3. Bb5 {[%emt 0:02:00]} a6 {[%emt 0:00:00]} 4. Ba4 {[%emt 0:00:00]} Nf6 {[%emt 0:00:30]} 5. O-O {[%emt 0:00:00]} Be7 {[%emt 0:00:30]} 6. Re1 {[%emt 0:00:30]} b5 {[%emt 0:00:30]} 7. Bb3 {[%emt 0:00:00]} d6 {[%emt 0:00:00]} 8. c3 {[%emt 0:00:00]} O-O {[%emt 0:00:00]} 9. h3 {[%emt 0:00:30]} Na5 {[%emt 0:00:30]} 10. Bc2 {[%emt 0:00:00]} c5 {[%emt 0:00:30]} 11. d4 {[%emt 0:00:00]} Qc7 {[%emt 0:00:00]} 12. d5 {[%emt 0:01:30]} Nb7 {[%emt 0:02:00]} 13. Nbd2 {[%emt 0:00:30]} c4 {[%emt 0:00:00]} 14. Nf1 {[%emt 0:00:30]} Bd7 {[%emt 0:01:00]} 15. g4 {[%emt 0:02:30]} Nc5 {[%emt 0:02:30]} 16. Ng3 {[%emt 0:02:30]} a5 {[%emt 0:01:30]} 17. Nf5 {[%emt 0:03:30]} Bxf5 {[%emt 0:10:30]} 18. exf5 {[%emt 0:01:30]} h6 {[%emt 0:00:30]} 19. Be3 {[%emt 0:05:30]} Rfb8 {[%emt 0:02:30]} 20. g5 {[%emt 0:03:30]} hxg5 {[%emt 0:05:30]} 21. Nxg5 {[%emt 0:01:30]} b4 {[%emt 0:01:30]} 22. Kh2 {[%emt 0:08:30]} b3 {[%emt 0:04:30]} 23. axb3 {[%emt 0:00:30]} cxb3 {[%emt 0:02:30]} 24. Bb1 {[%emt 0:00:30]} a4 {[%emt 0:02:30]} 25. Ra3 {[%emt 0:03:30]} Qc8 {[%emt 0:08:30]} 26. f3 {[%emt 0:10:30]} Bd8 {[%emt 0:12:30]} 27. Rg1 {[%emt 0:04:30]} Bb6 {[%emt 0:10:30]} 28. Qe1 {[%emt 0:16:30]} Qf8 {[%emt 0:01:30]} 29. Qh4 {[%emt 0:01:30]} Ncd7 {[%emt 0:07:30]} 30. Bxb6 {[%emt 0:02:30]} Nxb6 {[%emt 0:00:30]} 31. c4 {[%emt 0:05:30]} Rc8 {[%emt 0:03:30]} 32. Bd3 {[%emt 0:00:30]} Rc7 {[%emt 0:01:30]} 33. Kh1 {[%emt 0:09:28]} Rac8 {[%emt 0:00:45]} 34. Rg4 {[%emt 0:00:23]} Nbd7 {[%emt 0:04:03]} 35. Ra1 {[%emt 0:00:13]} e4 {[%emt 0:04:37]} 36. Rxe4 {[%emt 0:00:30]} Nc5 {[%emt 0:01:33]} 37. Be2 {[%emt 0:03:39]} Ncxe4 {[%emt 0:02:00]} 38. fxe4 {[%emt 0:00:07]} Qe8 {[%emt 0:07:36]} 39. Rg1 {[%emt 0:00:18]} Kf8 {[%emt 0:01:26]} 40. Qh8+ {[%emt 0:00:47]} Ke7 {[%emt 0:00:55]} 41. Qh4 {[%emt 0:00:20]} Kf8 {[%emt 0:00:34]} 42. Qh8+ {[%emt 0:02:22]} Ke7 {[%emt 0:00:04]} 43. Qh4 {[%emt 0:00:20]} Kf8 {[%emt 0:00:04]} 44. Qh8+ {[%emt 0:01:55]} 1/2-1/2

[Event "Turkish Club Cup 2019"]
[Site "Konya"]
[Date "2019.07.16"]
[Round "1"]
[White "Oz, Ozan"]
[Black "Temel, Mustafa"]
[Result "1-0"]
[ECO "D00"]
[WhiteElo "1923"]
[BlackElo "1549"]
[Annotator "NA"]
[PlyCount "87"]
[EventDate "2019.07.16"]
[EventType "team-tourn"]
[EventCountry "TUR"]
[SourceTitle "playchess.com"]
[Source "ChessBase"]
[SourceQuality "1"]
[TimeControl "5400+30"]

1. d4 {[%emt 0:00:30]} d5 {[%emt 0:00:30]} 2. Bf4 {[%emt 0:00:00]} Nf6 {[%emt 0:00:30]} 3. e3 {[%emt 0:00:00]} Bf5 {[%emt 0:00:30]} 4. c4 {[%emt 0:00:30]} e6 {[%emt 0:00:30]} 5. Qb3 {[%emt 0:03:30]} Qc8 {[%emt 0:07:30]} 6. Nc3 {[%emt 0:00:30]} c6 {[%emt 0:00:00]} 7. Rc1 {[%emt 0:00:30]} Nbd7 {[%emt 0:01:00]} 8. cxd5 {[%emt 0:04:30]} Nxd5 {[%emt 0:00:30]} 9. Bg3 {[%emt 0:02:30]} N7f6 {[%emt 0:02:30]} 10. Bc4 {[%emt 0:02:30]} Bb4 {[%emt 0:01:30]} 11. Nge2 {[%emt 0:04:30]} a5 {[%emt 0:01:30]} 12. O-O {[%emt 0:01:30]} O-O {[%emt 0:02:30]} 13. a3 {[%emt 0:05:30]} Bxc3 {[%emt 0:01:30]} 14. Nxc3 {[%emt 0:03:30]} a4 {[%emt 0:02:30]} 15. Nxa4 {[%emt 0:04:30]} Qd8 {[%emt 0:05:30]} 16. Nc5 {[%emt 0:06:30]} b6 {[%emt 0:02:30]} 17. Nb7 {[%emt 0:05:30]} Qd7 {[%emt 0:01:30]} 18. Nd6 {[%emt 0:10:30]} b5 {[%emt 0:07:30]} 19. Bxd5 {[%emt 0:00:30]} exd5 {[%emt 0:00:30]} 20. Nxf5 {[%emt 0:00:30]} Qxf5 {[%emt 0:00:00]} 21. Rxc6 {[%emt 0:00:00]} Ne4 {[%emt 0:00:00]} 22. Qxb5 {[%emt 0:02:00]} h5 {[%emt 0:00:30]} 23. Qe2 {[%emt 0:01:30]} Rac8 {[%emt 0:01:30]} 24. Rfc1 {[%emt 0:01:30]} Rxc6 {[%emt 0:03:30]} 25. Rxc6 {[%emt 0:00:30]} Rc8 {[%emt 0:00:00]} 26. Rxc8+ {[%emt 0:10:30]} Qxc8 {[%emt 0:00:00]} 27. Qd1 {[%emt 0:00:30]} Qc4 {[%emt 0:00:30]} 28. f3 {[%emt 0:00:30]} Nf6 {[%emt 0:00:30]} 29. Be1 {[%emt 0:00:30]} Qa2 {[%emt 0:00:30]} 30. Qc1 {[%emt 0:00:30]} g5 {[%emt 0:05:30]} 31. e4 {[%emt 0:06:30]} Nh7 {[%emt 0:00:30]} 32. e5 {[%emt 0:02:30]} Qb3 {[%emt 0:00:00]} 33. Qc3 {[%emt 0:01:30]} Qd1 {[%emt 0:00:00]} 34. b4 {[%emt 0:00:30]} Nf8 {[%emt 0:00:30]} 35. Qd2 {[%emt 0:00:59]} Qa1 {[%emt 0:00:30]} 36. Qxg5+ {[%emt 0:03:07]} Ng6 {[%emt 0:00:30]} 37. Qe3 {[%emt 0:01:36]} Nf4 {[%emt 0:00:00]} 38. Kf2 {[%emt 0:05:08]} Ne6 {[%emt 0:04:00]} 39. Bd2 {[%emt 0:01:51]} Nxd4 {[%emt 0:03:30]} 40. Qc3 {[%emt 0:01:12]} Qh1 {[%emt 0:02:30]} 41. Qxd4 {[%emt 0:01:02]} Qxh2 {[%emt 0:00:00]} 42. Qf4 {[%emt 0:00:00]} Qh1 {[%emt 0:01:00]} 43. Qg3+ {[%emt 0:00:07]} Kf8 {[%emt 0:00:30]} 44. Be1 {[%emt 0:00:05]} 1-0

[Event "Turkish Club Cup 2019"]
[Site "Konya"]
[Date "2019.07.16"]
[Round "1"]
[White "Aydin, Ismail"]
[Black "Sahin, Zulal Goksu"]
[Result "1-0"]
[ECO "D02"]
[WhiteElo "1896"]
[BlackElo "1039"]
[Annotator "NA"]
[PlyCount "45"]
[EventDate "2019.07.16"]
[EventType "team-tourn"]
[EventCountry "TUR"]
[SourceTitle "playchess.com"]
[Source "ChessBase"]
[SourceQuality "1"]
[TimeControl "5400+30"]

1. d4 {[%emt 0:00:30]} d5 {[%emt 0:00:30]} 2. Nf3 {[%emt 0:00:00]} Nc6 {[%emt 0:00:30]} 3. Bf4 {[%emt 0:00:00]} Nf6 {[%emt 0:00:00]} 4. e3 {[%emt 0:00:00]} Bf5 {[%emt 0:01:00]} 5. c3 {[%emt 0:00:00]} e6 {[%emt 0:00:30]} 6. Bd3 {[%emt 0:00:30]} Be4 {[%emt 0:03:30]} 7. O-O {[%emt 0:00:30]} Bd6 {[%emt 0:02:30]} 8. Ne5 {[%emt 0:01:30]} Bxe5 {[%emt 0:03:30]} 9. dxe5 {[%emt 0:00:30]} Nd7 {[%emt 0:01:30]} 10. Bxe4 {[%emt 0:00:00]} dxe4 {[%emt 0:00:00]} 11. Qa4 {[%emt 0:00:00]} f5 {[%emt 0:02:00]} 12. exf6 {[%emt 0:00:30]} Nxf6 {[%emt 0:00:30]} 13. Rd1 {[%emt 0:00:30]} Qe7 {[%emt 0:01:30]} 14. Nd2 {[%emt 0:00:30]} e5 {[%emt 0:04:30]} 15. Bg3 {[%emt 0:00:30]} O-O-O {[%emt 0:03:30]} 16. Nxe4 {[%emt 0:01:30]} Nh5 {[%emt 0:01:30]} 17. Bh4 {[%emt 0:00:00]} Nf6 {[%emt 0:01:30]} 18. b4 {[%emt 0:00:00]} Qf7 {[%emt 0:00:30]} 19. b5 {[%emt 0:00:30]} Ne7 {[%emt 0:00:30]} 20. Qxa7 {[%emt 0:00:30]} Rd5 {[%emt 0:00:30]} 21. Bxf6 {[%emt 0:00:30]} Ng6 {[%emt 0:01:30]} 22. Nc5 {[%emt 0:00:30]} gxf6 {[%emt 0:02:30]} 23. Qa8# {[%emt 0:00:30]} 1-0

[Event "Turkish Club Cup 2019"]
[Site "Konya"]
[Date "2019.07.16"]
[Round "1"]
[White "Guder, Serkan"]
[Black "Cilekaya, Tahir"]
[Result "1-0"]
[ECO "A05"]
[WhiteElo "1872"]
[BlackElo "1405"]
[Annotator "NA"]
[PlyCount "79"]
[EventDate "2019.07.16"]
[EventType "team-tourn"]
[EventCountry "TUR"]
[SourceTitle "playchess.com"]
[Source "ChessBase"]
[SourceQuality "1"]
[TimeControl "5400+30"]

1. b3 {[%emt 0:00:30]} Nf6 {[%emt 0:00:30]} 2. Bb2 {[%emt 0:01:30]} e6 {[%emt 0:13:30]} 3. Nf3 {[%emt 0:01:30]} Nc6 {[%emt 0:01:30]} 4. e3 {[%emt 0:00:30]} Be7 {[%emt 0:01:30]} 5. d4 {[%emt 0:01:30]} O-O {[%emt 0:00:30]} 6. Nbd2 {[%emt 0:00:30]} d5 {[%emt 0:00:30]} 7. a3 {[%emt 0:01:30]} Bd7 {[%emt 0:01:30]} 8. Bd3 {[%emt 0:01:30]} a6 {[%emt 0:01:30]} 9. Ne5 {[%emt 0:01:30]} Bd6 {[%emt 0:02:30]} 10. Qf3 {[%emt 0:01:30]} Qe7 {[%emt 0:08:30]} 11. Qh3 {[%emt 0:00:30]} g6 {[%emt 0:04:30]} 12. g4 {[%emt 0:03:30]} b5 {[%emt 0:10:30]} 13. Rg1 {[%emt 0:05:30]} Kg7 {[%emt 0:08:30]} 14. g5 {[%emt 0:08:30]} Ng8 {[%emt 0:07:30]} 15. f4 {[%emt 0:01:30]} f5 {[%emt 0:04:30]} 16. gxf6+ {[%emt 0:00:30]} Rxf6 {[%emt 0:04:30]} 17. Ndf3 {[%emt 0:03:30]} Be8 {[%emt 0:08:03]} 18. Rg4 {[%emt 0:05:30]} Nd8 {[%emt 0:07:50]} 19. Ke2 {[%emt 0:03:30]} Kf8 {[%emt 0:04:59]} 20. Rag1 {[%emt 0:03:30]} Qg7 {[%emt 0:03:41]} 21. Ng5 {[%emt 0:03:30]} h6 {[%emt 0:01:42]} 22. Ngf3 {[%emt 0:00:30]} Bxe5 {[%emt 0:01:13]} 23. dxe5 {[%emt 0:01:30]} Rf5 {[%emt 0:00:33]} 24. Bd4 {[%emt 0:01:30]} Qh7 {[%emt 0:01:18]} 25. Bc5+ {[%emt 0:02:30]} Ne7 {[%emt 0:00:15]} 26. Bxf5 {[%emt 0:01:30]} exf5 {[%emt 0:00:33]} 27. R4g3 {[%emt 0:00:30]} Ne6 {[%emt 0:00:27]} 28. Bxe7+ {[%emt 0:00:30]} Kxe7 {[%emt 0:00:09]} 29. Qh4+ {[%emt 0:00:30]} Kd7 {[%emt 0:00:47]} 30. Qf6 {[%emt 0:00:30]} g5 {[%emt 0:00:53]} 31. fxg5 {[%emt 0:00:30]} hxg5 {[%emt 0:00:52]} 32. Qxe6+ {[%emt 0:00:30]} Kxe6 {[%emt 0:00:06]} 33. Nxg5+ {[%emt 0:00:00]} Kxe5 {[%emt 0:00:50]} 34. Nxh7 {[%emt 0:00:00]} Bh5+ {[%emt 0:00:18]} 35. Kd2 {[%emt 0:00:30]} Rh8 {[%emt 0:00:25]} 36. Rg7 {[%emt 0:00:30]} c6 {[%emt 0:00:14]} 37. Re7+ {[%emt 0:01:30]} Kd6 {[%emt 0:00:25]} 38. Rgg7 {[%emt 0:00:30]} Bf3 {[%emt 0:00:50]} 39. b4 {[%emt 0:00:30]} Be4 {[%emt 0:00:32]} 40. Rd7+ {[%emt 0:00:30]} 1-0

[Event "Turkish Club Cup 2019"]
[Site "Konya"]
[Date "2019.07.16"]
[Round "1"]
[White "Subasi, Cagrican"]
[Black "Kaynak, Deniz Can"]
[Result "1-0"]
[ECO "A43"]
[WhiteElo "1871"]
[BlackElo "1488"]
[Annotator "NA"]
[PlyCount "47"]
[EventDate "2019.07.16"]
[EventType "team-tourn"]
[EventCountry "TUR"]
[SourceTitle "playchess.com"]
[Source "ChessBase"]
[SourceQuality "1"]
[TimeControl "5400+30"]

1. d4 {[%emt 0:00:30]} Nf6 {[%emt 0:00:30]} 2. Nf3 {[%emt 0:00:30]} c5 {[%emt 0:00:00]} 3. d5 {[%emt 0:00:00]} g6 {[%emt 0:01:00]} 4. Nc3 {[%emt 0:02:00]} d6 {[%emt 0:00:30]} 5. e4 {[%emt 0:01:30]} Bg7 {[%emt 0:00:30]} 6. Be2 {[%emt 0:01:30]} O-O {[%emt 0:00:30]} 7. h3 {[%emt 0:01:30]} a6 {[%emt 0:01:30]} 8. a4 {[%emt 0:00:30]} e6 {[%emt 0:03:30]} 9. dxe6 {[%emt 0:06:30]} fxe6 {[%emt 0:00:30]} 10. O-O {[%emt 0:03:30]} Nc6 {[%emt 0:02:30]} 11. Bg5 {[%emt 0:00:30]} b6 {[%emt 0:05:30]} 12. Qd2 {[%emt 0:10:30]} Ra7 {[%emt 0:03:30]} 13. Rad1 {[%emt 0:07:30]} Rd7 {[%emt 0:00:30]} 14. Bc4 {[%emt 0:00:30]} Qe8 {[%emt 0:05:30]} 15. Qe2 {[%emt 0:05:30]} Nb4 {[%emt 0:12:30]} 16. Bxf6 {[%emt 0:33:30]} Bxf6 {[%emt 0:00:30]} 17. e5 {[%emt 0:03:37]} d5 {[%emt 0:06:30]} 18. exf6 {[%emt 0:04:04]} dxc4 {[%emt 0:00:30]} 19. Ne4 {[%emt 0:04:37]} Rxd1 {[%emt 0:06:30]} 20. Rxd1 {[%emt 0:00:06]} Qc6 {[%emt 0:05:30]} 21. f7+ {[%emt 0:04:01]} Rxf7 {[%emt 0:04:30]} 22. Ne5 {[%emt 0:00:30]} Qxa4 {[%emt 0:02:30]} 23. Nxf7 {[%emt 0:01:06]} Kxf7 {[%emt 0:00:00]} 24. Nd6+ {[%emt 0:02:03]} 1-0

[Event "Turkish Club Cup 2019"]
[Site "Konya"]
[Date "2019.07.16"]
[Round "1"]
[White "Cevrin, Muhammed Cemre"]
[Black "Dincer, Onuralp"]
[Result "1-0"]
[ECO "A00"]
[WhiteElo "1860"]
[BlackElo "1306"]
[Annotator "NA"]
[PlyCount "55"]
[EventDate "2019.07.16"]
[EventType "team-tourn"]
[EventCountry "TUR"]
[SourceTitle "playchess.com"]
[Source "ChessBase"]
[SourceQuality "1"]
[TimeControl "5400+30"]

1. Nf3 {[%emt 0:00:30]} d5 {[%emt 0:00:30]} 2. b4 {[%emt 0:00:00]} Nf6 {[%emt 0:00:30]} 3. Bb2 {[%emt 0:00:00]} e6 {[%emt 0:00:30]} 4. a3 {[%emt 0:00:30]} Be7 {[%emt 0:06:30]} 5. d4 {[%emt 0:00:30]} O-O {[%emt 0:00:30]} 6. e3 {[%emt 0:00:00]} b6 {[%emt 0:00:00]} 7. Nbd2 {[%emt 0:01:00]} c5 {[%emt 0:04:00]} 8. bxc5 {[%emt 0:00:30]} bxc5 {[%emt 0:00:30]} 9. dxc5 {[%emt 0:00:30]} Bxc5 {[%emt 0:00:00]} 10. Bd3 {[%emt 0:00:30]} Ba6 {[%emt 0:00:00]} 11. O-O {[%emt 0:02:30]} Bxd3 {[%emt 0:00:30]} 12. cxd3 {[%emt 0:00:30]} Nbd7 {[%emt 0:01:30]} 13. Qa4 {[%emt 0:05:30]} Nb6 {[%emt 0:02:30]} 14. Qh4 {[%emt 0:03:30]} Be7 {[%emt 0:00:30]} 15. Qg3 {[%emt 0:09:30]} Nh5 {[%emt 0:08:30]} 16. Qh3 {[%emt 0:00:30]} Bf6 {[%emt 0:01:30]} 17. Ne5 {[%emt 0:04:30]} g6 {[%emt 0:07:30]} 18. g4 {[%emt 0:05:30]} Bxe5 {[%emt 0:01:30]} 19. Bxe5 {[%emt 0:00:30]} f6 {[%emt 0:00:00]} 20. gxh5 {[%emt 0:05:30]} fxe5 {[%emt 0:00:00]} 21. Qxe6+ {[%emt 0:00:30]} Kg7 {[%emt 0:00:30]} 22. Qxe5+ {[%emt 0:00:30]} Qf6 {[%emt 0:00:30]} 23. Qxf6+ {[%emt 0:09:30]} Rxf6 {[%emt 0:00:00]} 24. Rac1 {[%emt 0:00:30]} Rf7 {[%emt 0:00:00]} 25. hxg6 {[%emt 0:12:30]} Kxg6 {[%emt 0:00:30]} 26. f3 {[%emt 0:01:30]} Re8 {[%emt 0:00:30]} 27. Rc6+ {[%emt 0:01:30]} Kg7 {[%emt 0:00:30]} 28. Kf2 {[%emt 0:00:30]} 1-0

[Event "Turkish Club Cup 2019"]
[Site "Konya"]
[Date "2019.07.16"]
[Round "1"]
[White "Kiziltas, Inanc Vefa"]
[Black "Aki, Furkan"]
[Result "1-0"]
[ECO "B53"]
[WhiteElo "1858"]
[BlackElo "1223"]
[Annotator "NA"]
[PlyCount "55"]
[EventDate "2019.07.16"]
[EventType "team-tourn"]
[EventCountry "TUR"]
[SourceTitle "playchess.com"]
[Source "ChessBase"]
[SourceQuality "1"]
[TimeControl "5400+30"]

1. e4 {[%emt 0:00:30]} c5 {[%emt 0:00:30]} 2. Nf3 {[%emt 0:00:00]} d6 {[%emt 0:01:30]} 3. d4 {[%emt 0:00:00]} cxd4 {[%emt 0:00:00]} 4. Qxd4 {[%emt 0:00:00]} a6 {[%emt 0:00:00]} 5. c4 {[%emt 0:00:00]} Nc6 {[%emt 0:00:30]} 6. Qd1 {[%emt 0:00:30]} g6 {[%emt 0:01:30]} 7. Be2 {[%emt 0:00:30]} Bg7 {[%emt 0:00:30]} 8. O-O {[%emt 0:00:30]} Nf6 {[%emt 0:00:30]} 9. Nc3 {[%emt 0:00:30]} O-O {[%emt 0:00:00]} 10. h3 {[%emt 0:00:00]} Bd7 {[%emt 0:04:00]} 11. Be3 {[%emt 0:00:00]} Qc7 {[%emt 0:02:30]} 12. Rc1 {[%emt 0:00:00]} e6 {[%emt 0:06:30]} 13. Qd2 {[%emt 0:00:00]} Ne8 {[%emt 0:01:30]} 14. Rfd1 {[%emt 0:00:30]} f5 {[%emt 0:01:30]} 15. Bh6 {[%emt 0:00:30]} Rd8 {[%emt 0:15:30]} 16. Bxg7 {[%emt 0:00:30]} Kxg7 {[%emt 0:00:30]} 17. exf5 {[%emt 0:00:30]} Rxf5 {[%emt 0:06:30]} 18. Ne4 {[%emt 0:00:30]} Bc8 {[%emt 0:05:30]} 19. Qc3+ {[%emt 0:05:30]} e5 {[%emt 0:07:30]} 20. Rd2 {[%emt 0:03:30]} Rf8 {[%emt 0:06:30]} 21. g4 {[%emt 0:05:30]} Rf4 {[%emt 0:06:30]} 22. Qe3 {[%emt 0:01:30]} b6 {[%emt 0:02:30]} 23. Nc3 {[%emt 0:00:30]} Rd7 {[%emt 0:06:30]} 24. Nd5 {[%emt 0:02:30]} Qd8 {[%emt 0:03:30]} 25. Nxf4 {[%emt 0:00:30]} exf4 {[%emt 0:00:30]} 26. Qxf4 {[%emt 0:00:30]} Rf7 {[%emt 0:00:30]} 27. Qe3 {[%emt 0:03:30]} Qf6 {[%emt 0:00:40]} 28. Qxe8 {[%emt 0:01:30]} 1-0

[Event "Turkish Club Cup 2019"]
[Site "Konya"]
[Date "2019.07.16"]
[Round "1"]
[White "Basaran, Alp"]
[Black "Eken, Eylul"]
[Result "1-0"]
[ECO "B30"]
[WhiteElo "1857"]
[BlackElo "1083"]
[Annotator "NA"]
[PlyCount "59"]
[EventDate "2019.07.16"]
[EventType "team-tourn"]
[EventCountry "TUR"]
[SourceTitle "playchess.com"]
[Source "ChessBase"]
[SourceQuality "1"]
[TimeControl "5400+30"]

1. e4 {[%emt 0:00:30]} c5 {[%emt 0:00:30]} 2. Nf3 {[%emt 0:00:00]} Nc6 {[%emt 0:00:30]} 3. Bb5 {[%emt 0:00:00]} d5 {[%emt 0:33:30]} 4. exd5 {[%emt 0:09:30]} Qxd5 {[%emt 0:00:30]} 5. Nc3 {[%emt 0:01:30]} Qe6+ {[%emt 0:34:30]} 6. Ne2 {[%emt 0:01:30]} Bd7 {[%emt 0:04:03]} 7. d3 {[%emt 0:01:30]} f6 {[%emt 0:02:45]} 8. O-O {[%emt 0:02:30]} Qd6 {[%emt 0:07:39]} 9. Nc3 {[%emt 0:04:30]} e5 {[%emt 0:02:50]} 10. Nd2 {[%emt 0:04:30]} Be6 {[%emt 0:05:49]} 11. f4 {[%emt 0:01:30]} O-O-O {[%emt 0:01:27]} 12. Nde4 {[%emt 0:02:30]} Qe7 {[%emt 0:01:17]} 13. Bxc6 {[%emt 0:00:30]} bxc6 {[%emt 0:00:11]} 14. fxe5 {[%emt 0:00:30]} f5 {[%emt 0:00:53]} 15. Bg5 {[%emt 0:00:00]} Nf6 {[%emt 0:00:32]} 16. Nxf6 {[%emt 0:00:00]} gxf6 {[%emt 0:00:19]} 17. Bxf6 {[%emt 0:00:30]} Qf7 {[%emt 0:00:41]} 18. Bxh8 {[%emt 0:00:30]} Bg7 {[%emt 0:00:33]} 19. Bxg7 {[%emt 0:00:30]} Qxg7 {[%emt 0:00:06]} 20. Qf3 {[%emt 0:00:00]} Kc7 {[%emt 0:00:30]} 21. Rae1 {[%emt 0:00:00]} Rd4 {[%emt 0:00:47]} 22. Re3 {[%emt 0:04:30]} Rg4 {[%emt 0:00:36]} 23. Qf2 {[%emt 0:00:30]} Rd4 {[%emt 0:00:30]} 24. Ne2 {[%emt 0:01:30]} Rg4 {[%emt 0:00:57]} 25. Rg3 {[%emt 0:00:00]} h5 {[%emt 0:00:00]} 26. Rxg4 {[%emt 0:00:00]} hxg4 {[%emt 0:00:35]} 27. Nf4 {[%emt 0:00:30]} Bxa2 {[%emt 0:00:26]} 28. Qxc5 {[%emt 0:00:30]} Kc8 {[%emt 0:00:59]} 29. Qxc6+ {[%emt 0:00:30]} Kd8 {[%emt 0:00:30]} 30. Qa8+ {[%emt 0:00:00]} 1-0

[Event "Turkish Club Cup 2019"]
[Site "Konya"]
[Date "2019.07.16"]
[Round "1"]
[White "Benk, Tolga Tugay"]
[Black "Ucar, Ahmet Cemal"]
[Result "1-0"]
[ECO "B06"]
[WhiteElo "1844"]
[BlackElo "1336"]
[Annotator "NA"]
[PlyCount "95"]
[EventDate "2019.07.16"]
[EventType "team-tourn"]
[EventCountry "TUR"]
[SourceTitle "playchess.com"]
[Source "ChessBase"]
[SourceQuality "1"]
[TimeControl "5400+30"]

1. d4 {[%emt 0:00:30]} g6 {[%emt 0:00:30]} 2. e4 {[%emt 0:00:00]} d6 {[%emt 0:00:30]} 3. Nc3 {[%emt 0:01:00]} Bg7 {[%emt 0:00:30]} 4. Be3 {[%emt 0:00:30]} e6 {[%emt 0:02:30]} 5. Qd2 {[%emt 0:00:30]} a6 {[%emt 0:01:30]} 6. h4 {[%emt 0:05:30]} h5 {[%emt 0:04:30]} 7. O-O-O {[%emt 0:06:30]} Bd7 {[%emt 0:01:30]} 8. Be2 {[%emt 0:07:30]} Nc6 {[%emt 0:05:30]} 9. Nf3 {[%emt 0:06:30]} Qe7 {[%emt 0:04:30]} 10. Bg5 {[%emt 0:12:30]} f6 {[%emt 0:03:30]} 11. Bf4 {[%emt 0:05:30]} O-O-O {[%emt 0:03:30]} 12. Rhe1 {[%emt 0:06:30]} Qf8 {[%emt 0:05:30]} 13. Kb1 {[%emt 0:04:30]} Nge7 {[%emt 0:01:30]} 14. Bc4 {[%emt 0:06:30]} Na5 {[%emt 0:02:30]} 15. Bf1 {[%emt 0:00:00]} Nac6 {[%emt 0:00:30]} 16. d5 {[%emt 0:07:00]} Ne5 {[%emt 0:15:30]} 17. Qd4 {[%emt 0:05:30]} c5 {[%emt 0:07:30]} 18. dxc6 {[%emt 0:02:30]} N7xc6 {[%emt 0:07:30]} 19. Qxd6 {[%emt 0:01:35]} Qxd6 {[%emt 0:00:30]} 20. Rxd6 {[%emt 0:00:05]} Bf8 {[%emt 0:01:30]} 21. Rd2 {[%emt 0:03:00]} Be7 {[%emt 0:02:30]} 22. Ng1 {[%emt 0:11:48]} Bb4 {[%emt 0:03:30]} 23. Nge2 {[%emt 0:00:35]} Ba5 {[%emt 0:01:30]} 24. a3 {[%emt 0:01:31]} Bb6 {[%emt 0:00:30]} 25. Nc1 {[%emt 0:00:29]} Rhg8 {[%emt 0:03:30]} 26. Be3 {[%emt 0:01:10]} Bc7 {[%emt 0:00:35]} 27. Na4 {[%emt 0:00:31]} Ba5 {[%emt 0:03:37]} 28. c3 {[%emt 0:00:28]} Bc7 {[%emt 0:01:30]} 29. Red1 {[%emt 0:01:01]} Nb8 {[%emt 0:02:40]} 30. Nb6+ {[%emt 0:01:12]} Bxb6 {[%emt 0:03:52]} 31. Bxb6 {[%emt 0:00:30]} Rde8 {[%emt 0:02:04]} 32. Bd4 {[%emt 0:00:08]} Nbc6 {[%emt 0:01:09]} 33. Bxe5 {[%emt 0:00:08]} Nxe5 {[%emt 0:01:32]} 34. f4 {[%emt 0:00:04]} Ng4 {[%emt 0:02:26]} 35. Rxd7 {[%emt 0:00:05]} Rd8 {[%emt 0:00:47]} 36. Rxd8+ {[%emt 0:00:30]} Rxd8 {[%emt 0:00:00]} 37. Rxd8+ {[%emt 0:00:00]} Kxd8 {[%emt 0:00:06]} 38. g3 {[%emt 0:00:12]} Ne3 {[%emt 0:00:52]} 39. Be2 {[%emt 0:00:19]} f5 {[%emt 0:00:39]} 40. e5 {[%emt 0:00:20]} Nd5 {[%emt 0:01:13]} 41. Kc2 {[%emt 0:00:14]} Kc7 {[%emt 0:00:36]} 42. Kd2 {[%emt 0:00:30]} Kc6 {[%emt 0:00:30]} 43. Bf3 {[%emt 0:00:00]} Kc5 {[%emt 0:00:38]} 44. b4+ {[%emt 0:00:00]} Kb6 {[%emt 0:00:40]} 45. Bxd5 {[%emt 0:00:06]} exd5 {[%emt 0:00:11]} 46. Kd3 {[%emt 0:00:03]} Kc6 {[%emt 0:00:52]} 47. Kd4 {[%emt 0:00:03]} b5 {[%emt 0:01:13]} 48. Nd3 {[%emt 0:00:03]} 1-0